Cogmind - Beta 13 @@@ ROGUE MODE // 2024.06.10 @ 14:07:32 Player: lt_nd Result: Self-destructed Performance ------------- Evolutions (2) 1000 Regions Visited (4) 800 Robots Destroyed (42) 210 Value Destroyed (994) 994 Prototype IDs (0) 0 Alien Tech Used (0) 0 Bonus (100) 100 TOTAL SCORE: 3104 Bonus ------- High Alert Combat Kills 2 Follower Combat Kills 98 Cogmind --------- Core Integrity 527/550 Matter 216/300 Energy 325/325 System Corruption 2% Temperature Cool (0) Movement Hovering (108) Ox1 Location -8/Materials Parts ------- > --- POWER (2) -------- Improved Ion Engine Light Nuclear Core > --- PROPULSION (4) --- Gravmag System Gravmag System Gravmag System Gravmag System > --- UTILITY (3) ------ Large Storage Unit Sensor Array Shield Generator > --- WEAPON (2) ------- Advanced Assault Cannon Advanced Assault Cannon > --- INVENTORY (15) --- Advanced Treads Titanium Leg Huge Storage Unit Beam Rifle Autogun Improved Light Cannon Assault Cannon Advanced Assault Cannon Advanced Assault Cannon Peak State ------------ > --- POWER ------------ Improved Ion Engine Light Nuclear Core > --- PROPULSION ------- Gravmag System Gravmag System Gravmag System Gravmag System > --- UTILITY ---------- Large Storage Unit Sensor Array Shield Generator > --- WEAPON ----------- Advanced Assault Cannon Advanced Assault Cannon > --- INVENTORY -------- Ion Engine Advanced Treads Titanium Leg Huge Storage Unit Beam Rifle Assault Rifle Autogun Improved Light Cannon Assault Cannon Advanced Assault Cannon Advanced Assault Cannon Mini Grenade Launcher [Rating: 35] Favorites ----------- Power Improved Ion Engine Engine Improved Ion Engine Power Core Light Nuclear Core Propulsion Aluminum Leg Treads Light Treads Leg Aluminum Leg Wheel Wheel Hover Unit Gravmag System Utility Sensor Array Device Sensor Array Storage Large Storage Unit Weapon Grenade Launcher Energy Gun Medium Laser Ballistic Gun Assault Rifle Ballistic Cannon Assault Cannon Launcher Grenade Launcher Build | -11 -10 -10 -9 -8 ------- Run | Yrd Mat Min Mat Mat Slots Evolved 4 | . . . 2 2 Power 1 | . . . 1 . Propulsion 2 | . . . . 2 Utility 1 | . . . 1 . Weapon . | . . . . . Parts Attached 41 | 5 9 2 14 11 Power 6 | 1 1 . 3 1 Engine 5 | 1 1 . 3 . Core 1 | . . . . 1 Reactor . | . . . . . Propulsion 16 | 2 4 2 2 6 Treads 2 | . . . 2 . Leg 6 | . 2 2 . 2 Wheel 2 | 2 . . . . Hover 6 | . 2 . . 4 Flight . | . . . . . Utility 3 | . 2 . 1 . Device 2 | . 1 . 1 . Storage 1 | . 1 . . . Processor . | . . . . . Hackware . | . . . . . Protection . | . . . . . Artifact . | . . . . . Weapon 16 | 2 2 . 8 4 Energy Gun 1 | 1 . . . . Energy Cannon . | . . . . . Ballistic Gun 3 | 1 1 . 1 . Ballistic Cannon 7 | . . . 5 2 Launcher 5 | . 1 . 2 2 Special Weapon . | . . . . . Impact Weapon . | . . . . . Slashing Weapon . | . . . . . Piercing Weapon . | . . . . . Special Melee Weapon . | . . . . . Unidentified Prototypes . | . . . . . Parts Lost 3 | . . 1 1 1 Power 1 | . . . 1 . Propulsion 1 | . . 1 . . Utility . | . . . . . Weapon 1 | . . . . 1 Highest Loss Streak 1 | . . 1 1 1 To Critical Strikes . | . . . . . Average Slot Usage (%) 92 | . 91 100 89 98 Engine 16 | . 14 14 20 14 Treads 7 | . . . 15 3 Leg 9 | . 9 28 6 3 Wheel 2 | . 9 . . . Hover 6 | . 8 . . 28 Device 13 | . 11 14 13 18 Storage 10 | . 9 14 11 9 Ballistic Gun 7 | . 14 14 3 2 Ballistic Cannon 8 | . . . 14 14 Launcher 7 | . 13 14 3 . Naked Turns . | . . . . . Heaviest Build 47 | 4 33 33 47 47 Greatest Support 40 | 20 20 20 40 36 Greatest Overweight (x) 2 | . 2 1 1 2 Average Overweight (x) . | . . 1 . 1 Largest Inventory Capacity 15 | 5 15 15 15 15 Average Capacity 13 | 5 11 15 15 15 Most Carried 15 | 2 8 7 14 15 Average Carried 7 | . 4 6 8 9 Final Capacity 15 | 5 15 15 15 15 Final Carried 12 | . 7 7 12 9 Class Distribution -------------------- 100% | Mutant Dominant Class ---------------- Mutant | -10/Materials Mutant | -10/Mines Mutant | -9/Materials Mutant | -8/Materials Resources | -11 -10 -10 -9 -8 ----------- Run | Yrd Mat Min Mat Mat Matter Collected 1063 | 255 199 33 264 312 Remotely . | . . . . . Salvage Created 878 | 55 186 28 320 289 Parts 77 | 5 12 6 33 21 Haulers Intercepted 2 | . 1 . 1 . Recyclers Shooed . | . . . . . Parts Field Recycled . | . . . . . Retrieved Matter . | . . . . . Parts Self-Destructed . | . . . . . Prevented . | . . . . . Kills | -11 -10 -10 -9 -8 ------- Run | Yrd Mat Min Mat Mat Combat Hostiles Destroyed 25 | 1 4 3 12 5 Guns 3 | 1 1 . 1 . Cannons 4 | . . . 2 2 AOE 18 | . 3 3 9 3 Classes Destroyed 9 | 2 2 1 2 2 Worker 3 | 1 . . . 2 Builder 3 | . . . 3 . Hauler 2 | . 1 . 1 . Recycler 1 | . . . . 1 Operator 1 | . . . . 1 Watcher 7 | . 2 . 4 1 Swarmer 8 | . . 3 5 . Grunt 14 | 1 4 . 6 3 Sentry 3 | . . . 1 2 Best Kill Streak 5 | 1 2 3 4 5 Combat Bots Only 4 | 1 2 3 4 4 Max Kills in Single Turn 4 | 1 2 3 4 2 Gunslinging . | . . . . . Exploded 4 | . 1 3 4 1 Melee . | . . . . . Uniques/NPCs Destroyed . | . . . . . Combat | -11 -10 -10 -9 -8 -------- Run | Yrd Mat Min Mat Mat Hostile Shots Fired 79 | 4 11 6 34 24 Missed 26 | . 4 1 13 8 Damage Taken 841 | 46 100 81 440 174 Core 135 | 12 15 . 85 23 Absorbed by Shields 107 | . . . 40 67 Core Remaining (%) 87 | 95 . 89 78 . Volleys Fired 72 | 5 22 2 28 15 Largest 2 | 1 2 2 2 2 Hottest 96 | 20 50 50 88 96 Shots Fired 107 | 5 27 3 47 25 Gun 32 | 5 19 2 3 3 Cannon 52 | . . . 34 18 Launcher 23 | . 8 1 10 4 Special . | . . . . . Kinetic 84 | 5 19 2 37 21 Thermal . | . . . . . Explosive 23 | . 8 1 10 4 Electromagnetic . | . . . . . Robot Hit Streak 13 | 3 5 3 10 13 Robot Miss Streak 3 | 1 2 . 3 2 Penetration Max . | . . . . . Secondary Targets . | . . . . . Shots Hit Robots 56 | 4 10 3 27 12 Core Hits 54 | 3 11 2 24 14 Critical Kills . | . . . . . Critical Parts Destroyed . | . . . . . Critical Strikes 1 | . . . . 1 Blast 1 | . . . . 1 Melee Attacks . | . . . . . Impact . | . . . . . Slashing . | . . . . . Piercing . | . . . . . Sneak Attacks . | . . . . . Combat Hostiles . | . . . . . Follow-up Attacks . | . . . . . Damage Inflicted 2308 | 33 366 154 1226 529 Guns 211 | 33 64 27 42 45 Cannons 749 | . . . 488 261 Explosions 1336 | . 302 124 694 216 Melee . | . . . . . Ramming 12 | . . 3 2 7 Kinetic 960 | 33 64 27 530 306 Thermal . | . . . . . Explosive 1336 | . 302 124 694 216 Electromagnetic . | . . . . . Impact . | . . . . . Slashing . | . . . . . Piercing . | . . . . . Highest Corruption 2 | . . . . 2 Average Corruption 2 | . . . . 2 Corruption Purged . | . . . . . Corruption Blocked . | . . . . . Effects 1 | . . . . 1 Heat Flow Errors 1 | . . . . 1 Overload Shots . | . . . . . Overflow Damage 54 | . . 28 26 . Projectiles . | . . . . . Explosions 54 | . . 28 26 . Melee . | . . . . . Knockbacks 1 | . . . 1 . Impact . | . . . . . Kinetic 1 | . . . 1 . Secondary . | . . . . . Self-Inflicted Damage 39 | . . 36 . 3 Shots 1 | . . 1 . . Rammed 1 | . . . . 1 Targets Rammed 3 | . . 1 1 1 Kicked 2 | . . 1 1 . Crushed . | . . . . . Highest Temperature 234 | 6 37 . 198 234 Average Temperature 46 | 6 9 . 55 48 Received Heat Transfer 292 | 24 75 . 107 86 Siege Activations . | . . . . . Robots Corrupted . | . . . . . Combat Hostiles . | . . . . . Parts Fried . | . . . . . Impact Corruptions . | . . . . . Robots Melted . | . . . . . Combat Hostiles . | . . . . . Parts Melted . | . . . . . Heat Transferred . | . . . . . Parts Sabotaged . | . . . . . Parts Stolen . | . . . . . Parts Stripped . | . . . . . Power Chain Reactions . | . . . . . Alert | -11 -10 -10 -9 -8 ------- Run | Yrd Mat Min Mat Mat Peak Influence 440 | 25 119 111 440 274 Initial 87 | . 16 31 42 87 Average 169 | 3 49 110 256 207 Maximum Alert Level 2 | . . . 2 1 Low Security (%) 57 | 100 100 100 25 30 Level 1 37 | . . . 64 69 Level 2 4 | . . . 10 . Level 3 . | . . . . . Level 4 . | . . . . . Level 5 . | . . . . . High Security . | . . . . . Max Security . | . . . . . Squads Dispatched 4 | . . . 3 1 Investigation 2 | . . . 2 . Extermination . | . . . . . Reinforcement 2 | . . . 1 1 Assault . | . . . . . Garrison . | . . . . . Intercept . | . . . . . Searches Triggered . | . . . . . Construction Impeded . | . . . . . Haulers Reinforced . | . . . . . Active Scanning Responses . | . . . . . Cargo Convoy Interrupts . | . . . . . Stealth | -11 -10 -10 -9 -8 --------- Run | Yrd Mat Min Mat Mat Distress Signals 5 | . . . 4 1 Communications Jammed . | . . . . . Distress Signals . | . . . . . Times Spotted 36 | 1 5 3 20 7 Peak Tracking Total 4 | 1 2 3 4 3 Tactical Retreats . | . . . . . Traps | -11 -10 -10 -9 -8 ------- Run | Yrd Mat Min Mat Mat Traps Triggered 2 | . . . 1 1 Indirectly . | . . . . . Trap Hack Attempts . | . . . . . Triggered . | . . . . . Disarmed . | . . . . . Reprogrammed . | . . . . . Reused . | . . . . . Traps Extracted . | . . . . . Installed . | . . . . . Triggered . | . . . . . Machines | -11 -10 -10 -9 -8 ---------- Run | Yrd Mat Min Mat Mat Machines Disabled 6 | . 1 1 4 . Max in Single Turn 2 | . 1 1 2 . Machines Repaired . | . . . . . Machines Dismantled . | . . . . . Machines Sabotaged . | . . . . . Overloaded Fab Kills . | . . . . . Hacking | -11 -10 -10 -9 -8 --------- Run | Yrd Mat Min Mat Mat Machines Accessed 8 | . 1 1 6 . Terminals 6 | . 1 1 4 . Fabricators . | . . . . . Repair Stations 1 | . . . 1 . Recycling Units 1 | . . . 1 . Scanalyzers . | . . . . . Garrison Access . | . . . . . Total Hacks 18 | . 2 1 15 . Successful 15 | . 2 1 12 . Failed 3 | . . . 3 . Catastrophic 1 | . . . 1 . Database Lockouts . | . . . . . Manual 6 | . 1 1 4 . Terminals 16 | . 2 1 13 . Fabricators . | . . . . . Repair Stations 1 | . . . 1 . Recycling Units 1 | . . . 1 . Scanalyzers . | . . . . . Garrison Access . | . . . . . Terminal Hacks 14 | . 2 1 11 . Record 7 | . . . 7 . Robot Analysis 1 | . . . 1 . Emergency Access Points 1 | . . . 1 . Alert Level 3 | . 1 1 1 . Unreport Threat 2 | . 1 . 1 . Fabricator Hacks . | . . . . . Repair Station Hacks 1 | . . . 1 . Scan Component 1 | . . . 1 . Recycling Unit Hacks . | . . . . . Scanalyzer . | . . . . . Garrison Access Hacks . | . . . . . Unauthorized Hacks . | . . . . . Terminals . | . . . . . Fabricators . | . . . . . Repair Stations . | . . . . . Recycling Units . | . . . . . Scanalyzers . | . . . . . Garrison Access . | . . . . . Data Cores Recovered . | . . . . . Used . | . . . . . Hacking Detections 4 | . . . 4 . Full Trace Events 1 | . . . 1 . Feedback Events . | . . . . . Feedback Blocked . | . . . . . Robot Schematics Acquired . | . . . . . Robots Built . | . . . . . Authchips . | . . . . . Time . | . . . . . Total Robot Build Rating . | . . . . . Part Schematics Acquired . | . . . . . Parts Built . | . . . . . Authchips . | . . . . . Time . | . . . . . Total Part Build Rating . | . . . . . Parts Repaired . | . . . . . Time . | . . . . . Parts Recycled . | . . . . . Recycled Matter . | . . . . . Retrieved Matter . | . . . . . Retrieved Components . | . . . . . Parts Scanalyzed . | . . . . . Part Schematics Acquired . | . . . . . Parts Damaged . | . . . . . Bothacking | -11 -10 -10 -9 -8 ------------ Run | Yrd Mat Min Mat Mat Used RIF Installer . | . . . . . Robots Hacked . | . . . . . Non-combat . | . . . . . Combat . | . . . . . Robot Hacks Applied . | . . . . . Relay Couplers Released . | . . . . . Fabnet Peak Effective % . | . . . . . Robots Rewired . | . . . . . Allies Hacked . | . . . . . Hacks Repelled . | . . . . . Allies | -11 -10 -10 -9 -8 -------- Run | Yrd Mat Min Mat Mat Total Allies 1 | . . 1 . . Largest Group 1 | . . 1 1 . Highest-Rated Group 31 | . . 31 31 . Highest-Rated Ally 31 | . . 31 31 . Total Orders . | . . . . . Ally Attacks 22 | . . . 22 . Total Damage 295 | . . . 295 . Kills 5 | . . . 5 . Allies Corrupted . | . . . . . Allies Melted . | . . . . . Intel | -11 -10 -10 -9 -8 ------- Run | Yrd Mat Min Mat Mat Robot Analysis Total 1 | . . . 1 . Derelict Logs Recovered . | . . . . . Drone Launches . | . . . . . Drone Recoveries . | . . . . . Exploration | -11 -10 -10 -9 -8 ------------- Run | Yrd Mat Min Mat Mat Turns Passed 2543 | 67 663 344 1120 349 Spaces Moved 1357 | 65 446 176 448 222 Core 21 | 21 . . . . Treads 289 | . . . 289 . Legs 466 | . 111 176 159 20 Wheels 265 | 44 221 . . . Hover 316 | . 114 . . 202 Flight . | . . . . . Fastest Speed 48 | 50 80 190 160 48 Average Speed 164 | 70 132 190 221 119 Slowest Speed 260 | 80 190 190 240 260 Overloaded Moves . | . . . . . Propulsion Burnouts . | . . . . . Robots Hopped . | . . . . . Cave-ins Triggered . | . . . . . Exploration Rate (%) 41 | 5 61 53 70 16 Regions Visited 4 Branch Regions 1 Pre-discovered Areas . | . . . . . Known Exits Taken . | . . . . . Unknown Exits Taken 4 | 1 1 1 1 . Scrap Searched . | . . . . . Spaces Dug . | . . . . . Terrain Destroyed 155 | . 46 5 73 31 Melee . | . . . . . Projectile 8 | . . . 5 3 AOE 147 | . 46 5 68 28 Terrain Rammed . | . . . . . Walls Destroyed . | . . . . . Machines Disabled . | . . . . . Actions | -11 -10 -10 -9 -8 --------- Run | Yrd Mat Min Mat Mat Total 1592 | 83 500 183 538 288 Wait 33 | . . 1 19 13 Move 1353 | 64 445 175 447 222 Hop . | . . . . . Pick Up 45 | 6 14 1 13 11 Fast Attach . | . . . . . Attach 41 | 5 9 2 14 11 Detach 23 | 1 6 1 11 4 Swap . | . . . . . Drop 22 | 2 4 . 5 11 Fire 72 | 5 22 2 28 15 Melee . | . . . . . Ram 1 | . . . . 1 Kick 2 | . . 1 1 . Crush . | . . . . . Escape Stasis . | . . . . . Rewire . | . . . . . Trap . | . . . . . Miscellaneous . | . . . . . Route ------- -11/Scrapyard -10/Materials (discovered 4 exits: *Mat x2 / *Min x2) -10/Mines (discovered 3 exits: *Mat x2 / [*Exi]) -9/Materials (discovered 2 exits: [*Mat] / [*Min]) -8/Materials History --------- Turn | Location | Event 2 | -11/Scrapyard | Met Revision 17 53 | -11/Scrapyard | Discovered new exit (range 8) 68 | -11/Scrapyard | Entered Materials 109 | -10/Materials | Discovered new exit (range 9) 190 | -10/Materials | Discovered new exit (range 8) 231 | -10/Materials | Discovered new exit (range 14) 321 | -10/Materials | Build established: Mutant 322 | -10/Materials | Discovered new exit (range 8) 731 | -10/Materials | Entered Mines 926 | -10/Mines | Deemed a non-threat by the Exiles lab entrance 928 | -10/Mines | Discovered new exit (range 6) 932 | -10/Mines | Discovered new exit (range 10) 934 | -10/Mines | Discovered new exit (range 14) 1018 | -10/Mines | Escorted by a lone wolf Derelict 1075 | -10/Mines | Entered Materials 1075 | -9/Materials | Accompanied by 1 ally 1075 | -9/Materials | Evolved 2 slots: Power x1, Utility x1 1249 | -9/Materials | Discovered new exit (range 16) 2110 | -9/Materials | Discovered new exit (range 16) 2195 | -9/Materials | Entered another Materials area 2195 | -8/Materials | Evolved 2 slots: Propulsion x2 2544 | -8/Materials | Self-destructed Last Messages --------------- position but also has a chance to call more squads to reinforce the local area while you are within range. Y-45 Defender destroyed. Acquired 48 matter. Acquired 6 matter. Acquired 3 matter. W-25 Informer destroyed. U-05 Engineer builds a Wall. Acquired 28 matter. Acquired 2 matter. R-06 Scavenger collects Imp. Sensor Array. R-06 Scavenger collects Lgt. Deuterium Engine. U-05 Engineer builds a Door. R-06 Scavenger collects Imp. Signal Interpreter. R-06 Scavenger collects Lgt. Treads. System corrupted: Heat flow error (+244). K-01 Serf collects debris. Terminal unresponsive. R-06 Scavenger collects Lgt. Treads. Map ----- +----------------------------------------------------+ | ????????????????????????????????????????????????? | | ????????????????????????????????????????????????? | | ????????????????????????????????????????????????? | | ????????????????????????????????????????????????? | | ????????????????????????????????????????????????? | | ????????????????????????????????????????????????? | | ????????????????????????????????????????????????? | | ????????????????????????????????????????????????? | | ##??????????????????????????????????????????????? | | #??????????????????????????????????????????????? | | #??????????????????????????????????????????????? | | #??????????????????????????????????????????????? | | #??????????????????????????????????????????????? | | #????????????????###???????????????????????????? | | ##????????######### #???????????????????????????? | | ??????????# "" ! !#???????????????????????????? | | ??????????# ""S !*########????????????????????? | | ??????????# ""% # #????????????????????? | | ??????????# ! #" #????????????????????? | | ?????????## /!! #T """ #????????????????????? | | ????????### */!! #" """ #????????????????????? | | ???????## /!! # """ #????????????????????? | | ??????## #[ #????????????????????? | | ###############+########+###########????????????? | | #????????????? | | @ #????????????? | | r #????????????? | | ##################### #########????????????? | | ???????##### ##??# #????????????????????? | | ???????????### ##???# //]]#????????????????????? | | ??????????????##????# =// #????????????????????? | | ????????????????????########????????????????????? | | ????????????????????????????????????????????????? | | | | | | | | | | | | | | | | | | | | | | | | | | | | | | | | | | | +----------------------------------------------------+ Best States ------------- Heat Dissipation 31 Energy Generation 21 Energy Capacity 430 Matter Stores 300 Matter Capacity 300 Sight Range 16 Robot Scan Range 14 Terrain Scan Density 10 Evasion (%) 50 Recoil Reduction 2 Item Schematics ----------------- None Robot Schematics ------------------ None Fabricated ------------ Nothing Alien Tech Used ----------------- None Achievements -------------- Crack Shot Everything Is Under Control Let's See Who's Tougher Loot Pinata One Hack Too Far Uninvited Guest Challenges ------------ None Game ------ Seed SubdwellerReinforcedComputer Manual? 0 Play Time 00:48:52 Cumulative 0.8 hours Start 2024.06.10 @ 13:13:39 End 2024.06.10 @ 14:07:32 Sessions 1 Manual Loads 0 Difficulty Rogue Special Mode None Game No. 1 Rogue 1 Adventurer 0 Explorer 0 Win Type - Total 0 Types 0/0/0/0/0/0/0/0/0 Lore% 1 Gallery% 2 Achievement% 2 Wizard Run 0 Options --------- Layout 1 ASCII 0 Keyboard 1 Movement Numpad Keybinds 0 Fullscreen 1 Font 24/Smallcaps Map View 50x35 Zoom Use 0% Tactical HUD 0 Map Filters NONE Filters NONE Steam 1 RUN: 2882806d-f49e-4f8e-8601-1a7749c55627